bitfinex-derivatives/quotes_ETHF0:USTF0_20241104
["timestamp","ask_amount","ask_price","bid_price","bid_amount"]
[1730745190215,3.61964,2429.5,2429.4,0.41185]
[1730745190216,3.2078,2429.5,2429.4,0.41185]
[1730745190720,40.8,2429.6,2429.5,0.41182]
[1730745190911,41.21181,2429.6,2429.5,0.41182]
[1730745191117,40.8,2429.6,2429.5,0.41182]
[1730745191717,41.21181,2429.6,2429.5,0.41182]
[1730745194227,40.8,2429.6,2429.5,0.41182]
[1730745194728,41.21181,2429.6,2429.5,0.41182]
[1730745196624,40.8,2429.6,2429.4,0.4805]
[1730745196924,1.02958,2429.5,2429.2,3.2078]
[1730745197128,0.41186,2429.3,2429.2,3.2078]
[1730745197422,0.41186,2429.3,2429.2,3.77716079]
[1730745197837,0.88776,2429.3,2429.2,3.77716079]
[1730745198135,0.88776,2429.3,2429.2,0.56936079]
[1730745198423,0.4759,2429.3,2429.0,0.51]
[1730745198629,0.4759,2429.3,2429.1,0.9814661]
[1730745198630,0.41188,2429.2,2429.1,0.9814661]
[1730745199934,0.41188,2429.2,2429.1,0.5695861]
[1730745200342,0.41186,2429.3,2429.2,0.41188]
[1730745200633,0.88806,2429.3,2429.2,0.97796087]
[1730745200826,41.21182,2429.6,2429.2,3.45986692]
[1730745201035,41.21182,2429.6,2429.5,0.41183]
[1730745201233,40.8,2429.6,2429.5,0.41183]
[1730745201424,0.41179,2429.8,2429.7,0.41179]
[1730745201630,0.9612,2429.9,2429.5,0.56583456]
[1730745201833,3.30563131,2429.6,2429.5,0.56583456]
[1730745202234,7.89803131,2429.6,2429.5,0.56583456]
[1730745202432,48.69803131,2429.6,2429.5,0.56583456]
[1730745203236,45.80421,2429.6,2429.5,0.56583456]
[1730745204032,45.80421,2429.6,2429.3,0.41186]
[1730745204033,45.3924,2429.6,2429.3,0.41186]
[1730745204240,0.41185,2429.4,2429.3,0.41186]
[1730745204431,0.4731,2429.5,2429.1,1.06847589]
[1730745204730,0.88494,2429.5,2429.4,0.41185]
[1730745205123,5.00094,2429.5,2429.4,0.41185]
[1730745205536,0.41187,2429.3,2429.2,0.41186]
[1730745205731,0.5007,2429.4,2429.1,1.06847589]
[1730745205938,0.91256,2429.4,2429.3,0.41186]
[1730745206340,0.41187,2429.3,2429.2,0.41186]
[1730745206541,0.91256,2429.4,2429.3,0.41186]
[1730745208443,0.91256,2429.4,2429.1,1.06847589]
[1730745208444,0.41188,2429.2,2429.1,1.06847589]
[1730745208740,0.41188,2429.2,2428.8,1.06847589]
[1730745208741,0.41193,2428.9,2428.8,1.06847589]
[1730745208940,1.02975,2429.1,2428.7,0.41196]
[1730745208941,0.41195,2428.8,2428.7,1.48043589]
[1730745209139,0.41195,2428.8,2428.7,0.56741685]
[1730745209547,10.63117131,2428.8,2428.7,0.56741685]
[1730745209842,0.412,2428.5,2428.4,1.48047589]
[1730745210040,41.212,2428.5,2428.4,2.04789249]
[1730745210235,40.8,2428.5,2428.4,2.04789249]
[1730745210742,41.212,2428.5,2428.4,2.04789249]
[1730745211354,41.212,2428.5,2428.4,2.04864197]
[1730745211844,41.212,2428.5,2428.4,0.98016608]
[1730745212237,41.212,2428.5,2428.4,2.04864197]
[1730745213047,40.8,2428.5,2428.4,2.04864197]
[1730745213243,0.41198,2428.7,2428.6,0.41198]
[1730745213457,0.41198,2428.7,2428.6,0.98014608]
[1730745213745,0.41198,2428.7,2428.6,0.56816608]
[1730745213946,0.41198,2428.7,2428.6,0.98014608]
[1730745214542,0.9251,2428.9,2428.6,0.56405453]
[1730745214744,0.9251,2428.9,2428.4,2.09850589]
[1730745214745,0.41196,2428.8,2428.7,0.41195]
[1730745214949,1.33705,2428.9,2428.8,0.41195]
[1730745215445,0.464,2428.9,2428.8,0.41195]
[1730745215651,3.2078,2429.0,2428.9,0.41193]
[1730745216246,44.0078,2429.0,2428.9,0.41193]
[1730745216747,44.0078,2429.0,2428.9,0.97565086]
[1730745218247,44.0078,2429.0,2428.9,0.41193]
[1730745218649,3.2078,2429.0,2428.9,0.97553898]
[1730745219050,0.41185,2429.4,2429.0,1.02978]
[1730745219349,41.21186,2429.3,2429.2,0.41186]
[1730745220249,3.2078,2429.6,2429.2,4.1168]
[1730745220548,3.2078,2429.6,2429.5,0.41183]
[1730745220749,40.8,2429.6,2429.3,1.95605]
[1730745221055,40.8,2429.6,2429.5,0.41183]
[1730745221357,40.8,2429.6,2429.3,0.4588]
[1730745221655,40.8,2429.6,2429.5,0.41183]
[1730745222951,40.8,2429.6,2429.5,0.97535895]
[1730745223150,40.8,2429.6,2429.5,0.41183]
[1730745223352,40.8,2429.6,2429.5,0.9754921]
[1730745225247,40.8,2429.6,2429.5,0.97568263]
[1730745228263,40.8,2429.6,2429.5,4.18348263]
[1730745228662,40.8,2429.6,2429.5,7.73563]
[1730745229059,40.8,2429.6,2429.5,8.29989349]
[1730745229565,40.8,2429.6,2429.5,8.80563668]
[1730745230062,40.8,2429.6,2429.5,4.68963668]
[1730745230265,0.41178,2429.8,2429.5,9.46092141]
[1730745230560,0.41177,2429.9,2429.8,0.41176]
[1730745230763,41.21177,2429.9,2429.8,0.97602349]
[1730745231357,41.21177,2429.9,2429.8,0.41176]
[1730745232965,40.8,2429.9,2429.8,0.41176]
[1730745233366,41.21176,2429.9,2429.8,0.41176]
[1730745233959,40.8,2429.9,2429.8,0.41176]
[1730745234363,40.8,2429.9,2429.8,0.91596]
[1730745234562,40.8,2429.9,2429.8,1.48159553]
[1730745234770,41.21176,2429.9,2429.8,0.91596]
[1730745235167,40.8,2429.9,2429.8,0.91596]
[1730745235470,40.8,2429.9,2429.8,1.48161646]
[1730745235673,40.8,2429.9,2429.8,1.48161561]
[1730745235867,40.8,2429.9,2429.8,0.91596]
[1730745236766,40.8,2429.9,2429.8,1.48156496]
[1730745237366,40.8,2429.9,2429.8,0.91596]
[1730745237874,40.8,2429.9,2429.8,5.59671892]
[1730745238069,40.8,2429.9,2429.8,5.03116]
[1730745238373,40.8,2429.9,2429.8,5.59664951]
[1730745239074,40.8,2429.9,2429.8,1.48144951]
[1730745239472,40.8,2429.9,2429.8,0.91596]
[1730745239668,40.8,2429.9,2429.8,1.48141404]
[1730745240266,41.21176,2429.9,2429.8,1.06965404]
[1730745240473,0.41179,2429.7,2429.6,3.2078]
[1730745240672,0.41179,2429.7,2429.6,3.77331514]
[1730745240976,4.52779,2429.7,2429.6,3.2078]
[1730745241571,4.52779,2429.7,2429.6,3.61961]
[1730745241771,0.9826,2429.8,2429.7,0.41179]
[1730745241772,1.39438,2429.8,2429.7,0.41179]
[1730745242073,40.8,2429.9,2429.7,0.41179]
[1730745242074,40.8,2429.9,2429.8,0.41178]
[1730745242279,40.8,2429.9,2429.8,5.56497371]
[1730745242580,40.8,2429.9,2429.8,7.13784999]
[1730745243376,40.8,2429.9,2429.8,6.07073526]
[1730745243581,40.8,2429.9,2429.8,7.13748912]
[1730745245481,1.88459,2430.4,2430.3,0.41169]
[1730745245878,42.68459,2430.4,2430.3,0.41169]
[1730745246081,0.41171,2430.3,2430.2,0.4117]
[1730745247572,42.6846,2430.4,2430.3,0.41169]
[1730745248374,42.2729,2430.4,2430.3,0.41169]
[1730745248568,42.68458,2430.4,2430.3,0.41169]
[1730745248783,42.19428,2430.4,2430.3,0.41169]
[1730745249080,41.2793,2430.4,2430.3,0.41169]
[1730745250081,40.8,2430.4,2430.3,8.29496577]
[1730745250272,40.8,2430.4,2430.3,8.29477718]
[1730745250474,40.8,2430.4,2430.3,4.18037718]
[1730745250673,40.8,2430.4,2430.3,8.29477718]
[1730745251376,40.8,2430.4,2430.3,7.73389]
[1730745251587,40.8,2430.4,2430.3,4.52609]
[1730745252279,40.8,2430.4,2430.3,7.73389]
[1730745252782,40.8,2430.4,2430.3,8.29459745]
[1730745252977,0.41159,2430.9,2430.8,0.41161]
[1730745253584,4.6501,2431.1,2430.6,5.08913]
[1730745253777,4.6501,2431.1,2430.6,4.6775]
[1730745254085,40.8,2430.9,2430.6,5.08913]
[1730745254485,41.2116,2430.9,2430.6,5.08913]
[1730745254777,0.41161,2430.8,2430.6,5.08914]
[1730745254977,0.41164,2430.7,2430.4,0.41166]
[1730745255177,1.37544,2430.7,2430.4,0.41166]
[1730745255373,1.37544,2430.7,2430.5,3.2078]
[1730745255972,1.37544,2430.7,2430.5,3.61946]
[1730745256179,0.41164,2430.6,2430.5,3.61946]
[1730745256580,40.8,2430.9,2430.5,7.3222]
[1730745256779,40.8,2430.9,2430.5,6.10162131]
[1730745256978,41.2116,2430.9,2430.7,0.41162]
[1730745259180,41.2116,2430.9,2430.8,3.61941]
[1730745259181,40.8,2430.9,2430.8,3.61941]
[1730745259483,0.9638,2431.3,2431.0,0.41156]
[1730745259782,0.9638,2431.3,2430.8,5.67862]
[1730745259783,0.41156,2431.2,2430.8,5.67862]
[1730745259980,1.37534,2431.3,2431.2,0.41154]
[1730745260185,0.41154,2431.3,2431.1,0.41154]
[1730745260386,0.41154,2431.3,2431.2,0.89504]
[1730745260678,41.21154,2431.3,2431.2,0.4835]
[1730745261080,40.8,2431.3,2430.8,4.1661]
[1730745261283,0.41157,2431.0,2430.9,0.90878]
[1730745262378,0.41157,2431.1,2431.0,0.41156]
[1730745262781,0.41156,2431.2,2431.1,0.41155]
[1730745262982,0.41156,2431.2,2431.1,3.61935]
[1730745263181,0.41156,2431.2,2431.1,3.2078]
[1730745265177,0.41156,2431.2,2430.8,0.9583]
[1730745265382,0.41159,2430.9,2430.8,1.3699]
[1730745265586,0.41159,2430.9,2430.8,4.5777]
[1730745265781,0.41159,2430.9,2430.8,1.3699]
[1730745266189,0.41159,2430.9,2430.8,4.7267173]
[1730745266482,0.41159,2430.9,2430.4,4.78222386]
[1730745266483,0.41166,2430.5,2430.4,4.78222386]
[1730745266691,0.41166,2430.5,2430.4,0.41168]
[1730745266886,0.41166,2430.5,2430.4,3.61948]
[1730745267281,41.21166,2430.5,2430.4,3.61948]
[1730745267783,41.21166,2430.5,2430.2,3.57003386]
[1730745267784,0.41168,2430.4,2430.3,0.41169]
[1730745267984,0.41168,2430.4,2430.3,3.61949]
[1730745268288,0.41168,2430.4,2430.3,7.3222]
[1730745268486,0.41168,2430.4,2430.3,3.2078]
[1730745268693,0.41168,2430.4,2430.3,3.76881924]
[1730745269591,0.41168,2430.4,2430.3,4.18050924]
[1730745270787,0.41168,2430.4,2430.3,3.2078]
[1730745271193,40.8,2430.5,2430.3,6.10162131]
[1730745271383,1.0288,2431.4,2430.9,0.41159]
[1730745271584,0.4116,2430.9,2430.8,0.41159]
[1730745271890,40.8,2430.9,2430.8,0.41159]
[1730745274681,41.21159,2430.9,2430.8,0.41159]
[1730745274879,40.8,2430.9,2430.8,0.41159]
[1730745275284,40.8,2430.9,2430.8,3.61939]
[1730745276291,0.90713,2431.3,2431.2,0.41154]
[1730745276683,41.70713,2431.3,2431.2,0.41154]
[1730745277594,0.41155,2431.2,2431.1,0.41154]
[1730745277793,0.41155,2431.2,2430.9,1.02897]
[1730745277794,41.70714,2431.3,2431.2,0.41154]
[1730745279095,0.41154,2431.2,2431.1,4.09294]
[1730745281392,44.18942131,2431.3,2430.8,1.06675386]
[1730745281590,0.41159,2430.9,2430.8,1.47834386]
[1730745282393,0.4805,2431.1,2430.8,1.06675386]
[1730745282586,0.4805,2431.1,2431.0,3.61937]
[1730745282894,0.89206,2431.1,2431.0,3.61937]
[1730745283092,0.4805,2431.1,2431.0,3.61937]
[1730745283292,0.89206,2431.1,2431.0,3.61937]
[1730745283594,0.41156,2431.1,2431.0,3.61937]
[1730745284493,0.41156,2431.2,2431.1,0.41154]
[1730745285093,41.7709,2431.3,2431.0,3.61936]
[1730745285094,0.41156,2431.1,2431.0,3.61936]
[1730745289296,0.41156,2431.1,2431.0,4.17467128]
[1730745289500,0.41156,2431.1,2431.0,3.61936]
[1730745290399,0.41156,2431.1,2431.0,4.17145383]
[1730745291600,41.7709,2431.3,2431.1,0.41154]
[1730745291601,0.41155,2431.2,2431.1,0.41154]
[1730745291792,0.41156,2431.1,2431.0,3.2078]
[1730745292294,0.41156,2431.1,2431.0,3.76018653]
[1730745292492,0.41156,2431.1,2431.0,4.17175653]
[1730745294395,4.52516,2431.1,2431.0,0.55238653]
[1730745294602,0.41163,2430.7,2430.6,0.41163]
[1730745294800,0.41163,2430.7,2430.6,0.96128316]
[1730745294991,0.41159,2431.0,2430.9,0.41157]
[1730745295196,0.41161,2430.9,2430.8,0.41159]
[1730745295496,0.41161,2430.9,2430.8,0.54971615]
[1730745295700,0.41161,2430.8,2430.7,0.41162]
[1730745295896,1.37581,2430.8,2430.7,0.96136731]
[1730745296094,0.41161,2430.8,2430.7,1.46861801]
[1730745296601,0.41161,2430.8,2430.7,0.41162]
[1730745297093,0.9642,2431.1,2430.7,1.05706507]
[1730745297294,0.41159,2430.9,2430.8,2.39867447]
[1730745298101,0.41159,2430.9,2430.8,1.42507447]
[1730745298396,0.41159,2430.9,2430.8,0.96137447]
[1730745299502,0.41159,2431.0,2430.9,0.41157]
[1730745299699,0.41159,2431.0,2430.9,0.96134447]
[1730745299901,1.37577,2431.1,2431.0,0.41157]
[1730745300293,0.41157,2431.1,2431.0,0.41157]
[1730745300491,0.41156,2431.1,2431.0,4.16572594]
[1730745300905,0.41156,2431.1,2431.0,5.12041571]
[1730745301100,0.41155,2431.2,2431.1,0.41154]
[1730745301300,41.21153,2431.3,2431.2,0.41154]
[1730745302002,41.21153,2431.3,2431.2,0.9578612]
[1730745302598,41.21153,2431.3,2431.2,0.5463212]
[1730745302794,0.41154,2431.2,2431.1,0.41155]
[1730745302995,0.41154,2431.2,2431.1,0.95793064]
[1730745303501,0.41154,2431.2,2431.1,1.05376163]
[1730745303700,0.41154,2431.2,2431.1,0.95794064]
[1730745304106,41.21154,2431.3,2431.2,0.41154]
[1730745304399,40.8,2431.3,2431.2,0.41154]
[1730745304603,40.8,2431.3,2431.2,1.46567272]
[1730745304604,41.21152,2431.3,2431.2,1.46567272]
[1730745304809,40.8,2431.3,2431.2,1.46567272]
[1730745305902,40.8,2431.3,2431.2,2.43697272]
[1730745306613,40.8,2431.3,2431.2,1.38284]
[1730745306803,40.8,2431.3,2431.2,1.89051594]
[1730745307007,40.8,2431.3,2431.2,7.61656739]
[1730745307201,3.2078,2431.6,2431.3,1.02879]
[1730745307401,3.61929,2431.6,2431.5,0.41149]
[1730745307602,44.41929,2431.6,2431.5,0.9582211]
[1730745308100,44.41929,2431.6,2431.5,0.41149]
[1730745308903,44.0078,2431.6,2431.5,0.95816483]
[1730745309207,40.8,2431.6,2431.5,4.16596483]
[1730745309407,40.8,2431.6,2431.5,4.67354415]
[1730745310005,40.8,2431.6,2431.5,4.16596483]
[1730745310207,40.8,2431.6,2431.5,4.67344995]
[1730745313604,40.8,2431.6,2431.5,4.12677512]
[1730745313805,40.8,2431.6,2431.5,4.67271695]
[1730745315416,40.8,2431.6,2431.5,4.16551025]
[1730745315721,40.8,2431.6,2431.5,4.67254795]
[1730745316016,40.8,2431.6,2431.5,4.67255018]
[1730745316417,40.8,2431.6,2431.5,0.95771025]
[1730745316918,40.8,2431.6,2431.5,4.67276712]
[1730745317217,40.8,2431.6,2431.5,1.46663492]
[1730745317419,40.8,2431.6,2431.5,4.16719434]
[1730745317620,40.8,2431.6,2431.5,4.67449113]
[1730745317819,40.8,2431.6,2431.5,5.74101148]
[1730745318120,3.3038,2432.1,2431.7,1.02863]
[1730745318415,0.111,2432.2,2432.1,0.41137]
[1730745318416,0.41139,2432.2,2432.1,0.41137]
[1730745318617,0.41139,2432.2,2432.1,0.95878396]
[1730745318915,0.41137,2432.3,2432.2,0.41135]
[1730745319120,0.41135,2432.4,2432.3,0.41135]
[1730745319321,1.48114,2432.7,2432.2,1.4736]
[1730745319616,1.48114,2432.7,2432.0,3.61921]
[1730745319617,0.41139,2432.1,2432.0,3.61921]
[1730745319816,4.52339,2432.1,2432.0,3.2078]
[1730745320019,0.41144,2431.9,2431.8,0.41142]
[1730745320325,41.21144,2431.9,2431.8,0.95862026]
[1730745320514,41.21144,2431.9,2431.8,0.41144]
[1730745321217,0.41144,2431.8,2431.7,4.11034]
[1730745321413,1.33064,2431.8,2431.7,4.65747365]
[1730745321807,0.9192,2431.8,2431.7,4.65747365]
[1730745322221,40.8,2431.9,2431.8,0.41144]
[1730745322421,40.8,2431.9,2431.8,0.95834942]
[1730745322622,40.8,2431.9,2431.8,0.95833916]
[1730745323121,40.8,2431.9,2431.8,0.9583332]
[1730745323314,40.8,2431.9,2431.8,0.41144]
[1730745323615,40.8,2431.9,2431.8,4.52344]
[1730745324222,40.8,2431.9,2431.8,5.07013725]
[1730745324518,40.8,2431.9,2431.8,0.41144]
[1730745324710,40.8,2431.9,2431.8,4.52344]
[1730745325112,40.8,2431.9,2431.8,5.07002766]
[1730745325307,40.8,2431.9,2431.8,4.52344]
[1730745326416,41.21142,2431.9,2431.8,0.41144]
[1730745326918,0.41146,2431.8,2431.6,3.2078]
[1730745327112,0.41146,2431.7,2431.6,3.61927]
[1730745327315,1.418,2431.8,2431.5,0.41148]
[1730745327316,0.41149,2431.6,2431.5,0.41148]
[1730745327509,0.41151,2431.5,2431.4,0.41149]
[1730745327817,0.41151,2431.5,2431.4,0.95805835]
[1730745328217,0.41151,2431.5,2431.4,0.41149]
[1730745328412,2.44661,2431.8,2431.2,5.30472903]
[1730745328619,2.44661,2431.8,2431.5,0.41146]
[1730745328620,0.41148,2431.6,2431.5,0.41146]
[1730745329719,2.44661,2431.8,2431.4,3.2078]
[1730745329923,0.41149,2431.5,2431.4,3.2078]
[1730745330721,0.41149,2431.5,2431.4,3.61931]
[1730745332927,0.41149,2431.5,2431.4,0.41151]
[1730745333125,1.418,2431.8,2431.1,7.13967903]
[1730745333323,0.41147,2431.7,2431.6,0.41146]
[1730745334231,0.41147,2431.7,2431.6,3.61926]
[1730745334731,0.4115,2431.5,2431.4,0.41148]
[1730745335030,0.41151,2431.4,2431.3,3.2078]
[1730745335227,0.41157,2431.1,2431.0,0.41155]
[1730745335528,0.41156,2431.2,2431.1,0.41154]
[1730745335827,0.4571,2431.3,2430.9,4.23678]
[1730745336032,0.41155,2431.2,2431.1,0.41154]
[1730745336329,0.41157,2431.1,2431.0,0.41156]
[1730745336918,0.4571,2431.3,2431.0,0.41156]
[1730745337123,0.41155,2431.2,2431.1,0.41154]
[1730745338430,0.41157,2431.1,2431.0,0.41156]
[1730745338632,0.41155,2431.2,2431.1,0.41155]
[1730745338933,0.4571,2431.3,2431.0,0.41156]
[1730745338934,0.41156,2431.1,2431.0,0.41156]
[1730745339123,0.41156,2431.1,2431.0,0.96780453]
[1730745339318,0.41156,2431.1,2431.0,0.55624453]
[1730745339532,0.41157,2431.0,2430.9,3.61938]
[1730745339735,0.88537,2431.0,2430.9,4.17568389]
[1730745340627,0.88537,2431.0,2430.9,3.2078]
[1730745341231,0.88537,2431.0,2430.9,3.61939]
[1730745341721,0.41157,2431.1,2431.0,0.41155]
[1730745341926,0.41156,2431.2,2431.1,0.41154]
[1730745343034,0.41156,2431.2,2431.0,1.4584]
[1730745343035,1.35734,2431.3,2431.2,0.41154]
[1730745343423,5.47014,2431.3,2431.2,0.41154]
[1730745343835,0.41154,2431.3,2431.2,0.41154]
[1730745346432,1.02874,2431.5,2431.0,2.52647903]
[1730745346732,0.41156,2431.2,2431.1,0.96472345]
[1730745347539,0.41157,2431.0,2430.9,3.61938]
[1730745347831,0.41157,2431.0,2430.9,0.55334309]
[1730745348048,0.41157,2431.0,2430.7,4.68750903]
[1730745348049,0.41161,2430.8,2430.7,4.68750903]
[1730745348228,0.41161,2430.8,2430.7,4.17286734]
[1730745348634,0.41161,2430.8,2430.7,4.17279989]
[1730745348837,0.41161,2430.8,2430.7,3.76116989]
[1730745349038,41.21161,2430.8,2430.7,0.55336989]
[1730745349539,0.41163,2430.7,2430.6,3.2078]
[1730745349833,0.41163,2430.7,2430.6,0.54981559]
[1730745350041,41.2536,2430.8,2430.4,2.45867903]
[1730745350229,41.2536,2430.8,2430.4,1.3906]
[1730745350230,0.41166,2430.5,2430.4,1.3906]
[1730745350533,0.41166,2430.5,2430.4,0.54972283]
[1730745350732,0.41174,2430.0,2429.9,1.54437903]
[1730745350930,0.41174,2430.0,2429.9,0.4763]
[1730745352227,0.41176,2429.9,2429.8,3.2078]
[1730745352536,0.41176,2429.9,2429.7,0.41179]
[1730745352537,0.41178,2429.8,2429.7,3.61959]
[1730745352741,0.41178,2429.9,2429.8,0.41177]
[1730745353539,0.41178,2429.8,2429.7,3.2078]
[1730745353835,0.41178,2429.8,2429.7,3.61959]
[1730745354043,1.49613,2430.1,2429.7,3.2078]
[1730745354344,0.41178,2429.8,2429.7,3.61958]
[1730745354532,1.49613,2430.1,2429.7,3.2078]
[1730745354732,0.41178,2429.9,2429.8,0.41176]
[1730745357239,7.13084131,2430.4,2429.7,3.2078]
[1730745357443,0.41174,2430.1,2430.0,0.41173]
[1730745358034,4.23702,2430.4,2430.0,3.2078]
[1730745358238,0.41173,2430.1,2430.0,3.2078]
[1730745358543,4.23702,2430.4,2430.0,3.2078]
[1730745358737,1.02924,2430.3,2430.0,3.2078]
[1730745359160,0.41176,2429.9,2429.8,0.41176]
[1730745359342,1.02933,2430.1,2429.7,3.2078]
[1730745359547,0.41178,2429.8,2429.7,3.2078]
[1730745360347,0.41179,2429.7,2429.6,0.41181]
[1730745360760,0.41181,2429.6,2429.5,4.08222]
[1730745360951,41.21181,2429.6,2429.5,4.08222]
[1730745361152,41.21181,2429.6,2429.5,3.6704]
[1730745361356,44.916,2429.6,2429.3,3.61966]
[1730745361554,0.41185,2429.4,2429.3,3.61966]
[1730745362056,0.41185,2429.4,2429.3,3.2078]
[1730745362452,0.41185,2429.4,2429.3,3.61966]
[1730745362755,0.41185,2429.4,2429.3,3.2078]
[1730745363461,0.41185,2429.4,2429.3,3.61966]
[1730745363651,0.41185,2429.4,2429.3,3.2078]
[1730745364354,0.41187,2429.3,2429.2,0.41187]
[1730745365358,0.4631,2429.5,2429.1,4.1003]
[1730745365655,0.41188,2429.2,2429.1,4.51218]
[1730745366161,1.02963,2429.4,2429.0,0.4695]
[1730745366162,0.4119,2429.1,2429.0,0.4695]
[1730745366349,0.41191,2429.0,2428.9,3.61973]
[1730745366658,3.92354131,2429.2,2428.8,0.9377]
[1730745366858,0.41196,2428.7,2428.6,1.06603786]
[1730745367159,0.31196,2428.7,2428.6,0.18586786]
[1730745367365,2.89382131,2428.8,2428.5,0.88149]
[1730745367366,0.41198,2428.6,2428.5,0.88149]
[1730745367553,0.41198,2428.6,2428.5,0.41199]
[1730745367748,0.41198,2428.7,2428.6,0.41198]
[1730745368454,41.21198,2428.7,2428.6,0.41198]
[1730745369050,40.8,2428.7,2428.6,0.41198]
[1730745369562,1.33984,2428.9,2428.8,0.41195]
[1730745369861,42.13984,2428.9,2428.8,0.41195]
[1730745370059,46.25664,2428.9,2428.8,0.41195]
[1730745370360,0.41196,2428.8,2428.7,0.41196]
[1730745370560,42.13985,2428.9,2428.8,0.41195]
[1730745370958,46.25665,2428.9,2428.8,0.41195]
[1730745371160,0.41196,2428.8,2428.7,0.41195]
[1730745372854,41.7279,2428.9,2428.5,4.2378]
[1730745373058,42.13984,2428.9,2428.8,0.41195]
[1730745373357,0.41197,2428.8,2428.7,0.41196]
[1730745373757,0.41198,2428.7,2428.6,0.41197]
[1730745374163,0.41196,2428.8,2428.7,0.41196]
[1730745376657,41.2575,2428.9,2428.5,4.2378]
[1730745376859,0.41192,2429.0,2428.9,0.41191]
[1730745377973,41.21192,2429.1,2429.0,0.41191]
[1730745378364,40.8,2429.1,2429.0,0.41191]
[1730745378562,41.2119,2429.1,2429.0,0.41191]
[1730745379164,41.2119,2429.1,2428.9,0.4441]
[1730745379165,40.8,2429.1,2428.9,0.4441]
[1730745379471,0.41191,2429.0,2428.9,0.85602]
[1730745379670,41.21191,2429.1,2429.0,0.41191]
[1730745381265,40.8,2429.1,2429.0,0.41191]
[1730745382061,41.2119,2429.1,2429.0,0.41191]
[1730745382661,40.8,2429.1,2429.0,0.41191]
[1730745383066,41.2119,2429.1,2429.0,0.41191]
[1730745383873,40.8,2429.1,2429.0,0.41191]
[1730745384076,41.2119,2429.1,2429.0,0.41191]
[1730745384469,40.8,2429.1,2429.0,0.41191]
[1730745385276,40.8,2429.1,2428.8,3.6445]
[1730745385469,41.224,2429.1,2428.8,3.2078]
[1730745385672,0.41193,2429.0,2428.9,0.41191]
[1730745386175,41.6359,2429.1,2429.0,0.41191]
[1730745386375,40.8,2429.1,2429.0,0.41191]
[1730745386566,3.2078,2429.4,2429.3,0.41186]
[1730745386767,0.41181,2429.7,2429.3,0.41186]
[1730745386977,0.4118,2429.8,2429.7,0.41178]
[1730745387173,0.41183,2429.6,2429.5,0.41181]
[1730745387375,0.41183,2429.6,2429.4,3.2078]
[1730745387376,0.41183,2429.5,2429.4,3.2078]
[1730745387677,4.95183,2429.5,2429.4,3.2078]
[1730745387873,5.41003,2429.5,2429.4,3.2078]
[1730745389279,4.9982,2429.5,2429.1,5.59767903]
[1730745389480,0.41188,2429.3,2429.2,0.41187]
[1730745391676,0.8822,2429.5,2429.2,0.54730789]
[1730745391973,0.41185,2429.4,2429.3,0.41185]
[1730745393381,0.41185,2429.4,2429.3,0.95995113]
[1730745393678,0.41185,2429.4,2429.3,0.41185]
[1730745393874,0.41185,2429.4,2429.3,0.95994425]
[1730745394182,0.41185,2429.4,2429.3,2.02802328]
[1730745396087,0.41185,2429.4,2429.3,0.95994425]
[1730745396283,0.41185,2429.4,2429.3,1.46693688]
[1730745397074,0.41185,2429.4,2429.3,1.05508688]
[1730745397372,0.41185,2429.4,2429.3,1.61852807]
[1730745398174,0.41185,2429.4,2429.3,2.03038807]
[1730745398384,0.41185,2429.4,2429.3,1.46713565]
[1730745398578,0.41185,2429.4,2429.3,1.61864707]
[1730745399079,0.41185,2429.4,2429.3,2.03050707]
[1730745399881,0.41185,2429.4,2429.3,2.53776594]
[1730745400979,0.41185,2429.4,2429.3,1.98967169]
[1730745401177,0.41185,2429.4,2429.3,2.53588139]
[1730745401375,0.41185,2429.4,2429.3,2.02872221]
[1730745401575,0.4118,2429.7,2429.6,0.41179]
[1730745401782,0.4118,2429.7,2429.6,0.95809939]
[1730745403181,0.4118,2429.7,2429.6,0.54630939]
[1730745404184,0.4118,2429.7,2429.6,0.95811939]
[1730745404583,0.4118,2429.7,2429.6,0.95865266]
[1730745405090,0.4118,2429.7,2429.6,2.53810672]
[1730745405288,0.4118,2429.7,2429.6,1.46665788]
[1730745406386,0.4118,2429.7,2429.6,1.46670146]
[1730745407089,43.69382131,2429.8,2429.7,0.41179]
[1730745407287,44.10560131,2429.8,2429.7,1.46666899]
[1730745407488,43.69382131,2429.8,2429.7,1.46666899]
[1730745407691,44.10560131,2429.8,2429.7,1.46666899]
[1730745407895,44.10560131,2429.8,2429.7,1.05487899]
[1730745408191,44.10560131,2429.8,2429.7,1.46668915]
[1730745408192,48.22160131,2429.8,2429.7,1.46668915]
[1730745408390,48.22160131,2429.8,2429.7,0.95863266]
[1730745408693,48.22160131,2429.8,2429.7,1.05489804]
[1730745409185,48.22160131,2429.8,2429.7,0.54684266]
[1730745411881,0.41179,2429.7,2429.6,0.4118]
[1730745412087,0.41179,2429.7,2429.6,1.46850126]
[1730745412294,0.41179,2429.7,2429.6,1.97662662]
[1730745414488,0.41179,2429.7,2429.6,1.56482662]
[1730745414883,0.87349,2429.7,2429.6,1.97663662]
[1730745415287,0.87349,2429.7,2429.6,1.42805629]
[1730745415586,0.87349,2429.7,2429.6,1.97658882]
[1730745417294,0.87349,2429.7,2429.6,3.04803766]
[1730745419092,0.87349,2429.7,2429.6,2.49950513]
[1730745419287,0.87349,2429.7,2429.6,1.97687717]
[1730745419492,0.87349,2429.7,2429.6,3.04832601]
[1730745420090,0.87349,2429.7,2429.6,2.63651601]
[1730745420401,4.98949,2429.7,2429.6,2.63651601]
[1730745420595,8.65829,2429.7,2429.6,1.05682959]